[Event "Early-Titled-Tuesday-Blitz-September-12-2023"]
[Site "Chess.com"]
[Date "2023.09.12"]
[Round "6"]
[White "MKlose11"]
[Black "Sleepless_Knightmare"]
[Result "1-0"]
[WhiteElo "2625"]
[BlackElo "2428"]
[TimeControl "180+1"]
[EndTime "9:03:42 PDT"]
[Termination "MKlose11 won by resignation"]

1. e4 {[%clk 0:03:00.9]} 1... c5 {[%clk 0:02:59.1]} 2. Nc3 {[%clk 0:02:57.6]}
2... a6 {[%clk 0:02:54.6]} 3. g3 {[%clk 0:02:58.5]} 3... b5 {[%clk 0:02:55.2]}
4. Bg2 {[%clk 0:02:54.3]} 4... Bb7 {[%clk 0:02:55.8]} 5. d3 {[%clk 0:02:54.8]}
5... e6 {[%clk 0:02:54.9]} 6. Nh3 {[%clk 0:02:53.7]} 6... Nf6 {[%clk 0:02:52.1]}
7. O-O {[%clk 0:02:53.3]} 7... d5 {[%clk 0:02:49.3]} 8. e5 {[%clk 0:02:48.9]}
8... Nfd7 {[%clk 0:02:49]} 9. f4 {[%clk 0:02:49.8]} 9... Qb6 {[%clk 0:02:47.5]}
10. f5 {[%clk 0:02:49.1]} 10... b4 {[%clk 0:02:40.3]} 11. Ne2 {[%clk 0:02:45.6]}
11... Nxe5 {[%clk 0:02:38.4]} 12. fxe6 {[%clk 0:02:44.8]} 12... fxe6 {[%clk
0:02:36.3]} 13. Nef4 {[%clk 0:02:39.6]} 13... Be7 {[%clk 0:02:34.1]} 14. Qh5+
{[%clk 0:02:36.1]} 14... Nf7 {[%clk 0:02:28]} 15. Qxf7+ {[%clk 0:02:32.3]} 15...
Kxf7 {[%clk 0:02:23.6]} 16. Nxd5+ {[%clk 0:02:32.4]} 16... Bf6 {[%clk
0:02:19.9]} 17. Nxb6 {[%clk 0:02:32.2]} 17... Bxg2 {[%clk 0:02:19.7]} 18. Kxg2
{[%clk 0:02:31.5]} 18... Ra7 {[%clk 0:02:19.9]} 19. Ng5+ {[%clk 0:02:30.2]}
19... Kg6 {[%clk 0:02:16.6]} 20. Nxe6 {[%clk 0:02:28.5]} 20... Nd7 {[%clk
0:02:14.4]} 21. Nxd7 {[%clk 0:02:28]} 21... Rxd7 {[%clk 0:02:13.3]} 22. Nxc5
{[%clk 0:02:28.2]} 22... Rc7 {[%clk 0:02:13.1]} 23. Be3 {[%clk 0:02:27.6]} 23...
Bxb2 {[%clk 0:02:11.9]} 24. Rab1 {[%clk 0:02:25.8]} 24... Bc3 {[%clk 0:02:11]}
25. Rf2 {[%clk 0:02:26]} 25... a5 {[%clk 0:02:10.3]} 26. Ne4 {[%clk 0:02:26.2]}
26... Be5 {[%clk 0:02:07.3]} 27. h4 {[%clk 0:02:18.8]} 27... h6 {[%clk
0:02:05.6]} 28. Bb6 {[%clk 0:02:14.1]} 28... Rc6 {[%clk 0:02:04]} 29. Bxa5
{[%clk 0:02:14.2]} 29... Ra8 {[%clk 0:02:03.2]} 30. Bxb4 {[%clk 0:02:12.8]}
30... Rxa2 {[%clk 0:02:02.9]} 31. c3 {[%clk 0:02:11]} 31... Rxf2+ {[%clk
0:02:01.5]} 32. Kxf2 {[%clk 0:02:10.1]} 32... Kf5 {[%clk 0:01:58.8]} 33. Ke3
{[%clk 0:02:06.9]} 33... Kg4 {[%clk 0:01:58.6]} 34. d4 {[%clk 0:02:04]} 34...
Bc7 {[%clk 0:01:50.3]} 35. d5 {[%clk 0:02:03]} 35... Rg6 {[%clk 0:01:48.9]} 36.
d6 {[%clk 0:02:02.7]} 36... Bb6+ {[%clk 0:01:49]} 37. Kd3 {[%clk 0:01:58.7]}
37... Re6 {[%clk 0:01:44.1]} 38. Re1 {[%clk 0:01:53.8]} 38... Kh5 {[%clk
0:01:39.2]} 39. c4 {[%clk 0:01:49.8]} 39... g5 {[%clk 0:01:37.8]} 40. hxg5
{[%clk 0:01:49.4]} 40... hxg5 {[%clk 0:01:38.7]} 41. c5 {[%clk 0:01:50.1]} 41...
Bd8 {[%clk 0:01:37.4]} 42. c6 {[%clk 0:01:50.4]} 42... Kg6 {[%clk 0:01:33.7]}
43. c7 {[%clk 0:01:49.2]} 43... Bxc7 {[%clk 0:01:33.7]} 44. dxc7 {[%clk
0:01:50.1]} 44... Rc6 {[%clk 0:01:34]} 45. Bd6 {[%clk 0:01:49.4]} 45... Kf5
{[%clk 0:01:33.2]} 46. Rf1+ {[%clk 0:01:48.6]} 46... Ke6 {[%clk 0:01:32.5]} 47.
Rf8 {[%clk 0:01:48.1]} 47... Kd7 {[%clk 0:01:31.7]} 48. c8=Q+ {[%clk 0:01:45.4]}
48... Rxc8 {[%clk 0:01:31.1]} 49. Rxc8 {[%clk 0:01:46.3]} 49... Kxc8 {[%clk
0:01:31.4]} 50. Nxg5 {[%clk 0:01:46.6]} 50... Kd7 {[%clk 0:01:32]} 51. Bf4
{[%clk 0:01:47.5]} 1-0

[Event "Early-Titled-Tuesday-Blitz-September-12-2023"]
[Site "Chess.com"]
[Date "2023.09.12"]
[Round "6"]
[White "bescmelasti"]
[Black "MasterKroket"]
[Result "1-0"]
[WhiteElo "2624"]
[BlackElo "2418"]
[TimeControl "180+1"]
[EndTime "9:03:47 PDT"]
[Termination "bescmelasti won by resignation"]

1. e4 {[%clk 0:03:00.9]} 1... e5 {[%clk 0:02:59.1]} 2. Nf3 {[%clk 0:02:59.7]}
2... Nc6 {[%clk 0:02:59.4]} 3. Bc4 {[%clk 0:02:59.3]} 3... Bc5 {[%clk
0:02:59.1]} 4. d3 {[%clk 0:02:59.6]} 4... Nf6 {[%clk 0:02:58.5]} 5. O-O {[%clk
0:03:00.3]} 5... a6 {[%clk 0:02:57]} 6. a4 {[%clk 0:03:00.2]} 6... d6 {[%clk
0:02:56.7]} 7. c3 {[%clk 0:03:00.4]} 7... Be6 {[%clk 0:02:54.2]} 8. Bxe6 {[%clk
0:02:59.7]} 8... fxe6 {[%clk 0:02:53.4]} 9. b4 {[%clk 0:03:00.4]} 9... Bb6
{[%clk 0:02:52.1]} 10. Nbd2 {[%clk 0:02:59.1]} 10... O-O {[%clk 0:02:51.1]} 11.
Ra2 {[%clk 0:02:52]} 11... Qe8 {[%clk 0:02:50.9]} 12. Nc4 {[%clk 0:02:52.2]}
12... Ba7 {[%clk 0:02:47.9]} 13. b5 {[%clk 0:02:52.3]} 13... Ne7 {[%clk
0:02:43.7]} 14. Qb3 {[%clk 0:02:25.9]} 14... axb5 {[%clk 0:02:36.1]} 15. axb5
{[%clk 0:02:25.2]} 15... Ng6 {[%clk 0:02:30.3]} 16. b6 {[%clk 0:02:14.7]} 16...
Bxb6 {[%clk 0:02:26.2]} 17. Rxa8 {[%clk 0:02:15.6]} 17... Qxa8 {[%clk
0:02:23.1]} 18. Nxb6 {[%clk 0:02:15.9]} 18... cxb6 {[%clk 0:02:18]} 19. Qxe6+
{[%clk 0:02:16.4]} 19... Kh8 {[%clk 0:02:17.5]} 20. Qxd6 {[%clk 0:02:10.9]}
20... Qd8 {[%clk 0:02:13.7]} 21. Ba3 {[%clk 0:02:00.4]} 21... Qxd6 {[%clk
0:02:10.8]} 22. Bxd6 {[%clk 0:02:01.3]} 22... Rd8 {[%clk 0:02:11.1]} 23. Nxe5
{[%clk 0:01:58.4]} 23... Nxe5 {[%clk 0:02:07.3]} 24. Bxe5 {[%clk 0:01:59.3]}
24... Rxd3 {[%clk 0:02:07.6]} 25. f3 {[%clk 0:01:56.5]} 25... Nd7 {[%clk
0:02:02.3]} 26. Bd4 {[%clk 0:01:54.9]} 26... h5 {[%clk 0:01:54.9]} 27. Rb1
{[%clk 0:01:52.7]} 27... h4 {[%clk 0:01:46.7]} 28. Rb5 {[%clk 0:01:44.5]} 28...
Kg8 {[%clk 0:01:36.3]} 29. Rh5 {[%clk 0:01:41.9]} 29... Kf7 {[%clk 0:01:22.6]}
30. Rxh4 {[%clk 0:01:40.7]} 30... Nc5 {[%clk 0:01:23.2]} 31. Rf4+ {[%clk
0:01:37.3]} 31... Ke6 {[%clk 0:01:17.3]} 32. Bxg7 {[%clk 0:01:35]} 32... Rd1+
{[%clk 0:01:12.5]} 33. Kf2 {[%clk 0:01:35.3]} 33... Nd3+ {[%clk 0:01:13]} 34.
Ke2 {[%clk 0:01:29.3]} 34... Nxf4+ {[%clk 0:01:13.3]} 35. Kxd1 {[%clk
0:01:29.8]} 35... Nh5 {[%clk 0:01:14]} 36. Bd4 {[%clk 0:01:28.9]} 1-0

[Event "Early-Titled-Tuesday-Blitz-September-12-2023"]
[Site "Chess.com"]
[Date "2023.09.12"]
[Round "6"]
[White "schackspelaren"]
[Black "ChainedDowntohell"]
[Result "0-1"]
[WhiteElo "2285"]
[BlackElo "2499"]
[TimeControl "180+1"]
[EndTime "9:03:54 PDT"]
[Termination "ChainedDowntohell won by resignation"]

1. e4 {[%clk 0:03:00.9]} 1... c5 {[%clk 0:02:59.5]} 2. Nf3 {[%clk 0:03:01.1]}
2... d6 {[%clk 0:02:58.1]} 3. d4 {[%clk 0:03:01.6]} 3... cxd4 {[%clk 0:02:58.4]}
4. Nxd4 {[%clk 0:03:02.3]} 4... Nf6 {[%clk 0:02:58.7]} 5. Nc3 {[%clk 0:03:02.6]}
5... a6 {[%clk 0:02:58.5]} 6. Be3 {[%clk 0:03:01]} 6... e6 {[%clk 0:02:55.1]} 7.
f4 {[%clk 0:02:54.9]} 7... Be7 {[%clk 0:02:53.8]} 8. Be2 {[%clk 0:02:55]} 8...
O-O {[%clk 0:02:51.6]} 9. O-O {[%clk 0:02:54.9]} 9... Bd7 {[%clk 0:02:45.2]} 10.
a4 {[%clk 0:02:54.2]} 10... Nc6 {[%clk 0:02:44.6]} 11. Nb3 {[%clk 0:02:54.2]}
11... Qc7 {[%clk 0:02:42.3]} 12. Bf3 {[%clk 0:02:52.5]} 12... Rac8 {[%clk
0:02:38.9]} 13. g4 {[%clk 0:02:48.8]} 13... Na5 {[%clk 0:02:25.6]} 14. Nxa5
{[%clk 0:02:45.4]} 14... Qxa5 {[%clk 0:02:26.5]} 15. g5 {[%clk 0:02:44.9]} 15...
Ne8 {[%clk 0:02:24.1]} 16. Kh1 {[%clk 0:02:37.7]} 16... Qb4 {[%clk 0:02:22]} 17.
Bd4 {[%clk 0:02:11.2]} 17... f6 {[%clk 0:01:29.3]} 18. gxf6 {[%clk 0:02:07.3]}
18... Nxf6 {[%clk 0:01:12.3]} 19. e5 {[%clk 0:01:59.9]} 19... dxe5 {[%clk
0:01:10.1]} 20. fxe5 {[%clk 0:01:54.5]} 20... Ng4 {[%clk 0:01:03.4]} 21. Qd2
{[%clk 0:01:25.8]} 21... Rxf3 {[%clk 0:00:59.3]} 22. Rxf3 {[%clk 0:01:25.2]}
22... Bc6 {[%clk 0:00:59]} 23. Rf1 {[%clk 0:01:24.4]} 23... Rd8 {[%clk
0:00:52.6]} 24. Ne2 {[%clk 0:01:15.1]} 24... Qxd2 {[%clk 0:00:52]} 0-1

[Event "Early-Titled-Tuesday-Blitz-September-12-2023"]
[Site "Chess.com"]
[Date "2023.09.12"]
[Round "6"]
[White "Egor_Koshulyan"]
[Black "jaskol95"]
[Result "1-0"]
[WhiteElo "2740"]
[BlackElo "2547"]
[TimeControl "180+1"]
[EndTime "9:03:58 PDT"]
[Termination "Egor_Koshulyan won by checkmate"]

1. e4 {[%clk 0:03:00.9]} 1... d5 {[%clk 0:03:00]} 2. exd5 {[%clk 0:03:01.1]}
2... Nf6 {[%clk 0:03:00.2]} 3. d4 {[%clk 0:03:00.7]} 3... Bg4 {[%clk 0:02:59.9]}
4. Be2 {[%clk 0:03:00.3]} 4... Bxe2 {[%clk 0:02:54.8]} 5. Qxe2 {[%clk
0:03:01.2]} 5... Qxd5 {[%clk 0:02:55]} 6. Nf3 {[%clk 0:03:01.1]} 6... Nc6 {[%clk
0:02:48.6]} 7. c4 {[%clk 0:03:01]} 7... Qf5 {[%clk 0:02:49]} 8. O-O {[%clk
0:02:29.5]} 8... O-O-O {[%clk 0:02:46.7]} 9. d5 {[%clk 0:02:29]} 9... Nb4 {[%clk
0:02:46.6]} 10. Nc3 {[%clk 0:02:29.7]} 10... Qd3 {[%clk 0:02:43]} 11. Ne5 {[%clk
0:02:26.8]} 11... Qxe2 {[%clk 0:02:34.9]} 12. Nxe2 {[%clk 0:02:27.7]} 12... Re8
{[%clk 0:02:28.5]} 13. Nxf7 {[%clk 0:02:27.3]} 13... Rg8 {[%clk 0:02:29]} 14.
Nd4 {[%clk 0:02:21.7]} 14... e5 {[%clk 0:02:16.8]} 15. Ne6 {[%clk 0:02:12.7]}
15... Bd6 {[%clk 0:02:03.9]} 16. Be3 {[%clk 0:02:02.3]} 16... Nc2 {[%clk
0:01:50.4]} 17. Rac1 {[%clk 0:02:00.9]} 17... Nxe3 {[%clk 0:01:50.8]} 18. fxe3
{[%clk 0:02:01.8]} 18... b6 {[%clk 0:01:47]} 19. Nxg7 {[%clk 0:01:15.3]} 19...
Rxg7 {[%clk 0:01:39.5]} 20. Nxd6+ {[%clk 0:01:13.3]} 20... cxd6 {[%clk
0:01:40.4]} 21. Rxf6 {[%clk 0:01:13.9]} 21... Kd7 {[%clk 0:01:37.5]} 22. Rcf1
{[%clk 0:01:13.5]} 22... Ree7 {[%clk 0:01:34.1]} 23. Rf8 {[%clk 0:01:07.2]}
23... Rg4 {[%clk 0:01:26.6]} 24. b3 {[%clk 0:01:04.6]} 24... Re4 {[%clk
0:01:26.9]} 25. Ra8 {[%clk 0:01:01.5]} 25... Rxe3 {[%clk 0:01:20.8]} 26. Rxa7+
{[%clk 0:01:01.7]} 26... Ke8 {[%clk 0:01:21.4]} 27. Ra8+ {[%clk 0:01:02]} 27...
Kd7 {[%clk 0:01:22.1]} 28. Rff8 {[%clk 0:01:02.4]} 28... e4 {[%clk 0:01:08.2]}
29. Ra7# {[%clk 0:01:01.3]} 1-0

[Event "Early-Titled-Tuesday-Blitz-September-12-2023"]
[Site "Chess.com"]
[Date "2023.09.12"]
[Round "6"]
[White "WindWhistler11"]
[Black "FMStan15"]
[Result "1-0"]
[WhiteElo "2481"]
[BlackElo "2080"]
[TimeControl "180+1"]
[EndTime "9:03:58 PDT"]
[Termination "WindWhistler11 won by resignation"]

1. Nf3 {[%clk 0:03:00.9]} 1... Nf6 {[%clk 0:02:58.5]} 2. g3 {[%clk 0:03:01.1]}
2... g6 {[%clk 0:02:58.7]} 3. Bg2 {[%clk 0:03:01.3]} 3... d6 {[%clk 0:02:59.6]}
4. b3 {[%clk 0:03:01.4]} 4... e5 {[%clk 0:03:00.2]} 5. Bb2 {[%clk 0:03:02]} 5...
Bg7 {[%clk 0:03:00.2]} 6. d4 {[%clk 0:03:02.5]} 6... e4 {[%clk 0:02:58.9]} 7.
Nfd2 {[%clk 0:02:59.6]} 7... e3 {[%clk 0:02:59.1]} 8. fxe3 {[%clk 0:02:59.9]}
8... Ng4 {[%clk 0:02:59.5]} 9. Nc4 {[%clk 0:02:59.4]} 9... d5 {[%clk 0:02:57.6]}
10. h3 {[%clk 0:02:57.4]} 10... dxc4 {[%clk 0:02:44.8]} 11. hxg4 {[%clk
0:02:57.1]} 11... Qd6 {[%clk 0:02:32]} 12. Kf2 {[%clk 0:02:21.2]} 12... cxb3
{[%clk 0:02:27.6]} 13. axb3 {[%clk 0:02:20.5]} 13... c6 {[%clk 0:02:20.2]} 14.
Nd2 {[%clk 0:02:15.5]} 14... Bxg4 {[%clk 0:02:09.9]} 15. Ne4 {[%clk 0:02:08.7]}
15... Qe6 {[%clk 0:01:49.4]} 16. d5 {[%clk 0:01:52.7]} 16... Qf5+ {[%clk
0:01:47.6]} 17. Kg1 {[%clk 0:01:52.6]} 17... O-O {[%clk 0:01:35.9]} 18. Bxg7
{[%clk 0:01:50.8]} 18... Kxg7 {[%clk 0:01:35.8]} 19. Qd4+ {[%clk 0:01:49.7]}
19... f6 {[%clk 0:01:35.4]} 20. Rf1 {[%clk 0:01:37.2]} 20... Qxd5 {[%clk
0:01:22.3]} 21. Rxh7+ {[%clk 0:01:33.1]} 21... Kg8 {[%clk 0:01:06.8]} 22. Nxf6+
{[%clk 0:01:25.8]} 22... Rxf6 {[%clk 0:01:07]} 23. Bxd5+ {[%clk 0:01:16]} 23...
Kxh7 {[%clk 0:01:03.9]} 24. Qxf6 {[%clk 0:01:13.8]} 24... cxd5 {[%clk
0:00:55.4]} 25. Qh4+ {[%clk 0:01:12.8]} 25... Kg7 {[%clk 0:00:54.8]} 26. Qxg4
{[%clk 0:01:12.7]} 26... Nc6 {[%clk 0:00:55.1]} 27. Qd7+ {[%clk 0:01:13.3]}
27... Kh6 {[%clk 0:00:54.5]} 28. Qxb7 {[%clk 0:01:14.1]} 1-0

[Event "Early-Titled-Tuesday-Blitz-September-12-2023"]
[Site "Chess.com"]
[Date "2023.09.12"]
[Round "6"]
[White "Arek_pacitan"]
[Black "Mr_Lion22"]
[Result "1-0"]
[WhiteElo "2604"]
[BlackElo "2428"]
[TimeControl "180+1"]
[EndTime "9:04:06 PDT"]
[Termination "Arek_pacitan won by checkmate"]

1. e4 {[%clk 0:03:00.9]} 1... c5 {[%clk 0:02:57.5]} 2. Nf3 {[%clk 0:02:58.6]}
2... d6 {[%clk 0:02:56.1]} 3. d4 {[%clk 0:02:57.6]} 3... cxd4 {[%clk 0:02:55.8]}
4. Nxd4 {[%clk 0:02:58.5]} 4... Nf6 {[%clk 0:02:53.2]} 5. Nc3 {[%clk 0:02:59.1]}
5... a6 {[%clk 0:02:53.9]} 6. Bg5 {[%clk 0:02:53.5]} 6... e6 {[%clk 0:02:54.2]}
7. f4 {[%clk 0:02:53.8]} 7... Be7 {[%clk 0:02:54.4]} 8. Qf3 {[%clk 0:02:54.4]}
8... h6 {[%clk 0:02:54.1]} 9. Bxf6 {[%clk 0:02:52.6]} 9... Bxf6 {[%clk 0:02:55]}
10. O-O-O {[%clk 0:02:53.2]} 10... Nd7 {[%clk 0:02:50.5]} 11. g4 {[%clk
0:02:51.3]} 11... Qb6 {[%clk 0:02:43.4]} 12. Nb3 {[%clk 0:02:50.1]} 12... Qc7
{[%clk 0:02:38.2]} 13. h4 {[%clk 0:02:48.5]} 13... Bxc3 {[%clk 0:02:15.4]} 14.
bxc3 {[%clk 0:02:48.2]} 14... b5 {[%clk 0:02:14.9]} 15. g5 {[%clk 0:02:44.5]}
15... Bb7 {[%clk 0:02:15]} 16. g6 {[%clk 0:02:44.4]} 16... O-O-O {[%clk
0:01:59.5]} 17. gxf7 {[%clk 0:02:43.7]} 17... Nf6 {[%clk 0:01:59.3]} 18. Bh3
{[%clk 0:02:42.1]} 18... Qxf7 {[%clk 0:01:22.6]} 19. Rhe1 {[%clk 0:02:41.7]}
19... Kb8 {[%clk 0:01:22.7]} 20. Na5 {[%clk 0:02:39.3]} 20... Rhe8 {[%clk
0:01:15.5]} 21. Kb2 {[%clk 0:02:35.6]} 21... d5 {[%clk 0:01:12.3]} 22. e5 {[%clk
0:02:31.6]} 22... Ne4 {[%clk 0:01:11.8]} 23. Bg2 {[%clk 0:02:26.3]} 23... Rc8
{[%clk 0:01:01]} 24. Re3 {[%clk 0:02:15.1]} 24... Nc5 {[%clk 0:00:31.4]} 25. f5
{[%clk 0:02:05.5]} 25... Na4+ {[%clk 0:00:30.3]} 26. Ka1 {[%clk 0:02:04.9]}
26... d4 {[%clk 0:00:21.1]} 27. Nxb7 {[%clk 0:01:50.7]} 27... Qxb7 {[%clk
0:00:21.7]} 28. Qxb7# {[%clk 0:01:50.1]} 1-0

[Event "Early-Titled-Tuesday-Blitz-September-12-2023"]
[Site "Chess.com"]
[Date "2023.09.12"]
[Round "6"]
[White "MANOJ_MISHRA123"]
[Black "Gazaman_Empire"]
[Result "1-0"]
[WhiteElo "2215"]
[BlackElo "1996"]
[TimeControl "180+1"]
[EndTime "9:04:14 PDT"]
[Termination "MANOJ_MISHRA123 won on time"]

1. d4 {[%clk 0:03:00.9]} 1... Nf6 {[%clk 0:00:57]} 2. Bf4 {[%clk 0:02:08.5]}
2... g6 {[%clk 0:00:48.5]} 3. Nc3 {[%clk 0:02:05.1]} 3... Bg7 {[%clk 0:00:47.7]}
4. e4 {[%clk 0:02:05.2]} 4... d6 {[%clk 0:00:45.2]} 5. Qd2 {[%clk 0:02:05.4]}
5... h6 {[%clk 0:00:44.3]} 6. f3 {[%clk 0:02:04.6]} 6... Nbd7 {[%clk 0:00:32.2]}
7. O-O-O {[%clk 0:02:03.1]} 7... a6 {[%clk 0:00:27.5]} 8. h4 {[%clk 0:02:02.5]}
8... b5 {[%clk 0:00:25.1]} 9. g4 {[%clk 0:01:47.3]} 9... b4 {[%clk 0:00:23.8]}
10. Nb1 {[%clk 0:01:47.3]} 10... a5 {[%clk 0:00:11]} 11. e5 {[%clk 0:01:47.5]}
11... Nd5 {[%clk 0:00:10.6]} 12. e6 {[%clk 0:01:21.6]} 1-0

[Event "Early-Titled-Tuesday-Blitz-September-12-2023"]
[Site "Chess.com"]
[Date "2023.09.12"]
[Round "6"]
[White "Artem_Sadovsky"]
[Black "GaiozNigalidze"]
[Result "0-1"]
[WhiteElo "2536"]
[BlackElo "2725"]
[TimeControl "180+1"]
[EndTime "9:04:15 PDT"]
[Termination "GaiozNigalidze won by checkmate"]

1. Nf3 {[%clk 0:02:48.1]} 1... Nf6 {[%clk 0:02:56.2]} 2. e3 {[%clk 0:02:47.5]}
2... d5 {[%clk 0:02:56.4]} 3. c4 {[%clk 0:02:46.1]} 3... dxc4 {[%clk 0:02:53.8]}
4. Bxc4 {[%clk 0:02:45.6]} 4... e6 {[%clk 0:02:54.4]} 5. O-O {[%clk 0:02:45]}
5... Be7 {[%clk 0:02:54.4]} 6. d4 {[%clk 0:02:44.4]} 6... O-O {[%clk 0:02:54.4]}
7. Nc3 {[%clk 0:02:37]} 7... a6 {[%clk 0:02:54.3]} 8. a4 {[%clk 0:02:32.6]} 8...
Bd7 {[%clk 0:02:52.3]} 9. Ne5 {[%clk 0:02:29.4]} 9... Bc6 {[%clk 0:02:51.8]} 10.
f4 {[%clk 0:02:23.7]} 10... Bd5 {[%clk 0:02:37.9]} 11. Qb3 {[%clk 0:02:08.3]}
11... Bxc4 {[%clk 0:02:28.9]} 12. Nxc4 {[%clk 0:02:08.2]} 12... Ra7 {[%clk
0:02:10.3]} 13. f5 {[%clk 0:02:08.3]} 13... exf5 {[%clk 0:02:07.1]} 14. Rxf5
{[%clk 0:02:09.2]} 14... Nc6 {[%clk 0:01:59.5]} 15. d5 {[%clk 0:02:00.5]} 15...
Nb4 {[%clk 0:01:52.6]} 16. e4 {[%clk 0:02:00.6]} 16... Ng4 {[%clk 0:01:35.2]}
17. h3 {[%clk 0:01:51.8]} 17... Bc5+ {[%clk 0:01:34.6]} 18. Kh1 {[%clk
0:01:51.6]} 18... Qh4 {[%clk 0:01:30.3]} 19. Bg5 {[%clk 0:01:22.8]} 19... Nf2+
{[%clk 0:01:06.4]} 20. Kh2 {[%clk 0:01:22.3]} 20... Ng4+ {[%clk 0:00:59.5]} 21.
Kh1 {[%clk 0:01:22]} 21... Nf2+ {[%clk 0:00:20.9]} 22. Kg1 {[%clk 0:01:22.2]}
22... Nxh3+ {[%clk 0:00:20.5]} 23. Kh2 {[%clk 0:01:21.6]} 23... Nxg5# {[%clk
0:00:20.8]} 0-1

[Event "Early-Titled-Tuesday-Blitz-September-12-2023"]
[Site "Chess.com"]
[Date "2023.09.12"]
[Round "6"]
[White "Aash20"]
[Black "Vision_64"]
[Result "0-1"]
[WhiteElo "2497"]
[BlackElo "2363"]
[TimeControl "180+1"]
[EndTime "9:04:23 PDT"]
[Termination "Vision_64 won by resignation"]

1. e4 {[%clk 0:02:57.2]} 1... e6 {[%clk 0:02:59.9]} 2. d4 {[%clk 0:02:57]} 2...
d5 {[%clk 0:02:59.7]} 3. Nd2 {[%clk 0:02:57.1]} 3... c5 {[%clk 0:02:56.6]} 4.
exd5 {[%clk 0:02:55.8]} 4... exd5 {[%clk 0:02:38.2]} 5. Ngf3 {[%clk 0:02:54.7]}
5... Nc6 {[%clk 0:02:36.9]} 6. Bb5 {[%clk 0:02:54.3]} 6... Nf6 {[%clk
0:02:32.1]} 7. O-O {[%clk 0:02:53]} 7... Be7 {[%clk 0:02:32.5]} 8. dxc5 {[%clk
0:02:51.6]} 8... Bxc5 {[%clk 0:02:33.4]} 9. Nb3 {[%clk 0:02:51.3]} 9... Bd6
{[%clk 0:02:32.2]} 10. c3 {[%clk 0:02:51.1]} 10... O-O {[%clk 0:02:29.9]} 11.
Bg5 {[%clk 0:02:43.5]} 11... Bg4 {[%clk 0:02:11.3]} 12. Bxf6 {[%clk 0:02:41.8]}
12... Qxf6 {[%clk 0:02:10.2]} 13. Qxd5 {[%clk 0:02:41.7]} 13... Bxf3 {[%clk
0:02:06.4]} 14. Qxf3 {[%clk 0:02:41.4]} 14... Qe5 {[%clk 0:02:06.6]} 15. Rfd1
{[%clk 0:02:25.7]} 15... Qxh2+ {[%clk 0:02:00.4]} 16. Kf1 {[%clk 0:02:25.4]}
16... Qh1+ {[%clk 0:01:39.7]} 17. Ke2 {[%clk 0:02:25]} 17... Rfe8+ {[%clk
0:01:39.4]} 18. Kd2 {[%clk 0:02:22]} 18... Qh6+ {[%clk 0:01:35.3]} 19. Kc2
{[%clk 0:02:20.9]} 19... Rac8 {[%clk 0:01:31.2]} 20. Rac1 {[%clk 0:02:07.7]}
20... Ne5 {[%clk 0:01:13.8]} 21. Qd5 {[%clk 0:02:03.5]} 21... Qg6+ {[%clk
0:01:10.3]} 22. Bd3 {[%clk 0:02:01.3]} 22... Nxd3 {[%clk 0:01:04.3]} 23. Qxd3
{[%clk 0:01:59.4]} 23... Bf4 {[%clk 0:00:58.4]} 24. Qxg6 {[%clk 0:01:54.7]}
24... hxg6 {[%clk 0:00:54.5]} 25. Nd2 {[%clk 0:01:33.8]} 25... Re2 {[%clk
0:00:54.1]} 26. g3 {[%clk 0:01:33.9]} 26... Bg5 {[%clk 0:00:40.9]} 27. f4 {[%clk
0:01:33.8]} 27... Bf6 {[%clk 0:00:39.8]} 28. Kb1 {[%clk 0:01:31.3]} 28... Rg2
{[%clk 0:00:30]} 29. Rg1 {[%clk 0:01:30.6]} 29... Rxd2 {[%clk 0:00:29.3]} 0-1

[Event "Early-Titled-Tuesday-Blitz-September-12-2023"]
[Site "Chess.com"]
[Date "2023.09.12"]
[Round "6"]
[White "mmDarko"]
[Black "infinitegiantkiller"]
[Result "1-0"]
[WhiteElo "2245"]
[BlackElo "2482"]
[TimeControl "180+1"]
[EndTime "9:04:32 PDT"]
[Termination "mmDarko won by resignation"]

1. d4 {[%clk 0:03:00.9]} 1... Nf6 {[%clk 0:02:51.5]} 2. Nf3 {[%clk 0:03:01.8]}
2... g6 {[%clk 0:02:52.2]} 3. g3 {[%clk 0:03:02.2]} 3... Bg7 {[%clk 0:02:53.1]}
4. Bg2 {[%clk 0:03:03.1]} 4... d6 {[%clk 0:02:53.6]} 5. O-O {[%clk 0:03:04]}
5... O-O {[%clk 0:02:54.4]} 6. c4 {[%clk 0:03:04.9]} 6... Nc6 {[%clk 0:02:54.8]}
7. Nc3 {[%clk 0:03:05.8]} 7... e5 {[%clk 0:02:55.4]} 8. d5 {[%clk 0:03:06.3]}
8... Ne7 {[%clk 0:02:55.4]} 9. e4 {[%clk 0:03:07.2]} 9... Ne8 {[%clk 0:02:55.5]}
10. Ne1 {[%clk 0:03:07.6]} 10... f5 {[%clk 0:02:56.2]} 11. Nd3 {[%clk
0:03:07.4]} 11... Nf6 {[%clk 0:02:56.3]} 12. f4 {[%clk 0:03:07.4]} 12... Nd7
{[%clk 0:02:54.6]} 13. Be3 {[%clk 0:03:03.8]} 13... a5 {[%clk 0:02:53.3]} 14.
Qd2 {[%clk 0:03:03.6]} 14... b6 {[%clk 0:02:53.3]} 15. Rae1 {[%clk 0:03:03.8]}
15... Ba6 {[%clk 0:02:52.5]} 16. b3 {[%clk 0:03:03.4]} 16... fxe4 {[%clk
0:02:49.8]} 17. Nxe4 {[%clk 0:02:59.5]} 17... Nf5 {[%clk 0:02:49.9]} 18. Ng5
{[%clk 0:02:45.7]} 18... Nxe3 {[%clk 0:02:48.3]} 19. Qxe3 {[%clk 0:02:29.8]}
19... exf4 {[%clk 0:02:36.7]} 20. Qe6+ {[%clk 0:02:29.2]} 20... Kh8 {[%clk
0:02:36.3]} 21. Nf7+ {[%clk 0:02:24.7]} 21... Rxf7 {[%clk 0:02:36.6]} 22. Qxf7
{[%clk 0:02:24.4]} 22... Ne5 {[%clk 0:01:55.1]} 23. Nxe5 {[%clk 0:02:14.3]}
23... dxe5 {[%clk 0:01:55.1]} 24. gxf4 {[%clk 0:01:49.6]} 24... Qe8 {[%clk
0:01:48]} 25. Qxc7 {[%clk 0:01:23.6]} 25... b5 {[%clk 0:01:19.8]} 26. d6 {[%clk
0:00:47.8]} 26... bxc4 {[%clk 0:01:08.8]} 27. Bxa8 {[%clk 0:00:41.6]} 27... cxb3
{[%clk 0:01:06.4]} 28. d7 {[%clk 0:00:36.4]} 28... Qxa8 {[%clk 0:01:04.6]} 29.
d8=Q+ {[%clk 0:00:34.6]} 1-0